fUSD/lending_fUSD_20260601
["ID","MTS","AMOUNT","RATE_DAILY","PERIOD"]
[423630287,1780265450000,-300.0,0.00035485,2]
[423630292,1780265450000,-300.0,0.00035485,2]
[423630294,1780265450000,-300.0,0.00035485,2]
[423630300,1780265450000,-344.67640552,0.00035485,2]
[423630297,1780265450000,-300.0,0.00035485,2]
[423630298,1780265450000,-1264.80678045,0.00035485,2]
[423630304,1780265450000,-300.0,0.00035485,2]
[423630295,1780265450000,-300.0,0.00035485,2]
[423630291,1780265450000,-300.0,0.00035485,2]
[423630302,1780265450000,-300.0,0.00035485,2]
[423630293,1780265450000,-300.0,0.00035485,2]
[423630296,1780265450000,-300.0,0.00035485,2]
[423630299,1780265450000,-300.0,0.00035485,2]
[423630301,1780265450000,-527.99519721,0.00035485,2]
[423630303,1780265450000,-300.0,0.00035485,2]
[423630305,1780265450000,-300.0,0.00035485,2]
[423630307,1780265450000,-950.98229606,0.00035485,2]
[423630311,1780265450000,-300.0,0.00035485,2]
[423630248,1780265450000,-310.50110747,0.00035485,2]
[423630312,1780265450000,-1149.64153705,0.00035485,2]
[423630306,1780265450000,-866.17918798,0.00035485,2]
[423630308,1780265450000,-1800.99236666,0.00035485,2]
[423630309,1780265450000,-300.0,0.00035485,2]
[423630285,1780265450000,-300.0,0.00035485,2]
[423630284,1780265450000,-727.57003954,0.00035485,2]
[423630310,1780265450000,-300.0,0.00035485,2]
[423630290,1780265450000,-300.0,0.00035485,2]
[423630245,1780265450000,-300.0,0.00035485,2]
[423630264,1780265450000,-300.0,0.00035485,2]
[423630253,1780265450000,-300.0,0.00035485,2]
[423630255,1780265450000,-300.0,0.00035485,2]
[423630260,1780265450000,-300.0,0.00035485,2]
[423630257,1780265450000,-300.0,0.00035485,2]
[423630252,1780265450000,-300.0,0.00035485,2]
[423630262,1780265450000,-300.0,0.00035485,2]
[423630258,1780265450000,-300.0,0.00035485,2]
[423630256,1780265450000,-1097.16968584,0.00035485,2]
[423630259,1780265450000,-300.0,0.00035485,2]
[423630261,1780265450000,-300.0,0.00035485,2]
[423630266,1780265450000,-300.0,0.00035485,2]
[423630254,1780265450000,-300.0,0.00035485,2]
[423630270,1780265450000,-493.38232728,0.00035485,2]
[423630279,1780265450000,-300.0,0.00035485,2]
[423630289,1780265450000,-301.20088581,0.00035485,2]
[423630274,1780265450000,-300.0,0.00035485,2]
[423630271,1780265450000,-300.0,0.00035485,2]
[423630273,1780265450000,-300.0,0.00035485,2]
[423630276,1780265450000,-300.0,0.00035485,2]
[423630267,1780265450000,-300.0,0.00035485,2]
[423630278,1780265450000,-300.0,0.00035485,2]
[423630275,1780265450000,-605.70713704,0.00035485,2]
[423630268,1780265450000,-300.0,0.00035485,2]
[423630272,1780265450000,-300.0,0.00035485,2]
[423630265,1780265450000,-300.0,0.00035485,2]
[423630269,1780265450000,-493.71853303,0.00035485,2]
[423630277,1780265450000,-300.0,0.00035485,2]
[423630352,1780265451000,-188.41,0.00035616,30]
[423630351,1780265451000,-260.8386003,0.00035616,10]
[423630346,1780265451000,-26856.49,0.000356,2]
[423630348,1780265451000,-150.0,0.00035616,10]
[423630347,1780265451000,-2000.0,0.00035613,25]
[423630349,1780265451000,-150.0,0.00035616,10]
[423630343,1780265451000,-869.24,0.00035593,2]
[423630345,1780265451000,-2266.0,0.000356,7]
[423630355,1780265451000,-530.19831011,0.00035622,120]
[423630344,1780265451000,-6714.12,0.000356,2]
[423630342,1780265451000,-500.0,0.00035593,2]
[423630364,1780265451000,-156.0,0.00035711,30]
[423630354,1780265451000,-302.89,0.00035616,25]
[423630353,1780265451000,-231.54,0.00035616,2]
[423630358,1780265451000,-2000.0,0.00035669,80]
[423630357,1780265451000,-433.20822678,0.00035658,2]
[423630356,1780265451000,-1610.69224664,0.00035624,2]
[423630361,1780265451000,-268.99,0.000357,30]
[423630362,1780265451000,-3347.22,0.000357,14]
[423630366,1780265451000,-387.0,0.00035713,30]
[423630359,1780265451000,-375.05,0.0003567,80]
[423630360,1780265451000,-627.0,0.00035681,11]
[423630336,1780265451000,-210.659953,0.000355,11]
[423630350,1780265451000,-150.0,0.00035616,10]
[423630338,1780265451000,-500.0,0.00035585,2]
[423630320,1780265451000,-595.21497888,0.00035485,2]
[423630337,1780265451000,-500.0,0.00035585,2]
[423630365,1780265451000,-766.0,0.00035711,30]
[423630316,1780265451000,-1636.24753201,0.00035485,2]
[423630314,1780265451000,-300.0,0.00035485,2]
[423630315,1780265451000,-300.0,0.00035485,2]
[423630313,1780265451000,-310.25089904,0.00035485,2]
[423630318,1780265451000,-300.0,0.00035485,2]
[423630328,1780265451000,-300.0,0.00035485,2]
[423630317,1780265451000,-300.0,0.00035485,2]
[423630321,1780265451000,-300.0,0.00035485,2]
[423630319,1780265451000,-300.0,0.00035485,2]
[423630325,1780265451000,-578.77492127,0.00035485,2]
[423630324,1780265451000,-300.0,0.00035485,2]
[423630322,1780265451000,-300.0,0.00035485,2]
[423630326,1780265451000,-300.0,0.00035485,2]
[423630323,1780265451000,-464.81458028,0.00035485,2]
[423630327,1780265451000,-452.85549676,0.00035485,2]
[423630329,1780265451000,-300.0,0.00035485,2]
[423630330,1780265451000,-300.0,0.00035485,2]
[423630340,1780265451000,-500.0,0.00035593,2]
[423630341,1780265451000,-500.0,0.00035593,2]
[423630332,1780265451000,-300.0,0.00035485,2]
[423630335,1780265451000,-902.7,0.000355,7]
[423630333,1780265451000,-436.5,0.00035487,120]
[423630331,1780265451000,-300.0,0.00035485,2]
[423630334,1780265451000,-1676.43,0.00035488,2]
[423630339,1780265451000,-579.49,0.00035585,2]
[423630367,1780265451000,-507.0,0.00035713,30]
[423630380,1780265451000,-350.0,0.0003589,5]
[423630369,1780265451000,-192.0,0.00035715,30]
[423630398,1780265451000,-250.0,0.00036,30]
[423630402,1780265451000,-1230.45001398,0.00036008,2]
[423630400,1780265451000,-1335.07851389,0.00036008,2]
[423630401,1780265451000,-1428.71364209,0.00036008,2]
[423630404,1780265451000,-1844.30200819,0.00036008,2]
[423630408,1780265451000,-1264.46376147,0.00036008,2]
[423630409,1780265451000,-1330.54717279,0.00036008,2]
[423630410,1780265451000,-1266.96371416,0.00036013,2]
[423630411,1780265451000,-1610.69224664,0.0003607,2]
[423630413,1780265451000,-157.99575143,0.00036135,2]
[423630403,1780265451000,-1254.74802514,0.00036008,2]
[423630399,1780265451000,-2160.9835966,0.00036008,2]
[423630405,1780265451000,-1287.25823512,0.00036008,2]
[423630412,1780265451000,-3009.29,0.00036093,2]
[423630415,1780265451000,-512.3,0.00036153,30]
[423630414,1780265451000,-7244.9602,0.00036137,50]
[423630416,1780265451000,-375.05,0.0003621,110]
[423630418,1780265451000,-627.0,0.00036214,11]
[423630417,1780265451000,-12891.58132127,0.00036214,2]
[423630422,1780265451000,-3550.0,0.00036282,2]
[423630420,1780265451000,-2000.0,0.00036277,2]
[423630421,1780265451000,-9187.1105,0.00036277,2]
[423630419,1780265451000,-3009.29,0.00036221,2]
[423630363,1780265451000,-701.23,0.000357,30]
[423630407,1780265451000,-2248.7162776,0.00036008,2]
[423630397,1780265451000,-334.54266907,0.00036,120]
[423630406,1780265451000,-2081.22352817,0.00036008,2]
[423630396,1780265451000,-462.7321229,0.00036,2]
[423630368,1780265451000,-265.0,0.00035713,30]
[423630392,1780265451000,-400.0,0.00035951,2]
[423630370,1780265451000,-215.0,0.00035715,30]
[423630375,1780265451000,-1704.822,0.000358,30]
[423630372,1780265451000,-152.0,0.00035715,30]
[423630376,1780265451000,-1704.82,0.000358,30]
[423630373,1780265451000,-283.0,0.00035715,30]
[423630377,1780265451000,-531.3507,0.00035837,2]
[423630371,1780265451000,-350.0,0.00035715,30]
[423630378,1780265451000,-3009.29,0.00035837,2]
[423630379,1780265451000,-157.99575143,0.00035861,2]
[423630391,1780265451000,-400.0,0.00035951,2]
[423630374,1780265451000,-1704.822,0.000358,30]
[423630387,1780265451000,-407.0,0.00035951,2]
[423630394,1780265451000,-3009.29,0.00035965,2]
[423630381,1780265451000,-4648.3,0.00035895,30]
[423630393,1780265451000,-200.0,0.00035965,5]
[423630389,1780265451000,-150.0,0.00035951,2]
[423630388,1780265451000,-169.79743012,0.00035951,2]
[423630385,1780265451000,-407.0,0.00035951,2]
[423630395,1780265451000,-800.0,0.00036,2]
[423630386,1780265451000,-150.0,0.00035951,2]
[423630384,1780265451000,-200.0,0.00035916,5]
[423630390,1780265451000,-150.0,0.00035951,2]
[423630383,1780265451000,-165.33,0.00035909,2]
[423630382,1780265451000,-150.0,0.00035899,2]
[423630458,1780265452000,-151.0,0.00036314,7]
[423630477,1780265452000,-1610.69224664,0.00036588,2]
[423630467,1780265452000,-157.99575143,0.00036409,2]
[423630460,1780265452000,-3009.29,0.00036349,2]
[423630478,1780265452000,-3009.29,0.00036605,2]
[423630454,1780265452000,-151.0,0.00036314,7]
[423630459,1780265452000,-199.566695,0.00036314,7]
[423630464,1780265452000,-151.0,0.000364,7]
[423630462,1780265452000,-34745.0,0.000364,30]
[423630461,1780265452000,-1610.69224664,0.00036395,2]
[423630457,1780265452000,-159.802164,0.00036314,7]
[423630469,1780265452000,-500.0,0.00036433,7]
[423630463,1780265452000,-151.0,0.000364,7]
[423630466,1780265452000,-151.0,0.000364,7]
[423630485,1780265452000,-531.3507,0.00036733,2]
[423630468,1780265452000,-500.0,0.00036433,120]
[423630471,1780265452000,-500.0,0.00036433,30]
[423630472,1780265452000,-3009.29,0.00036477,2]
[423630475,1780265452000,-1610.69224664,0.00036544,2]
[423630470,1780265452000,-500.0,0.00036433,2]
[423630474,1780265452000,-218.03,0.00036523,30]
[423630476,1780265452000,-16385.8472,0.00036587,30]
[423630473,1780265452000,-1000.0,0.000365,120]
[423630481,1780265452000,-157.99575143,0.00036683,2]
[423630482,1780265452000,-268.99,0.000367,30]
[423630483,1780265452000,-3347.22,0.000367,14]
[423630487,1780265452000,-2000.0,0.00036747,12]
[423630456,1780265452000,-151.0,0.00036314,7]
[423630479,1780265452000,-2000.0,0.00036639,120]
[423630465,1780265452000,-151.0,0.000364,7]
[423630427,1780265452000,-151.0,0.00036311,14]
[423630450,1780265452000,-1836.785998,0.00036314,7]
[423630425,1780265452000,-1273.0,0.00036282,2]
[423630426,1780265452000,-1226.0,0.00036282,2]
[423630423,1780265452000,-1356.0,0.00036282,2]
[423630424,1780265452000,-525.0,0.00036282,2]
[423630431,1780265452000,-1406.279124,0.00036314,7]
[423630480,1780265452000,-192.65,0.00036675,60]
[423630429,1780265452000,-151.0,0.00036314,7]
[423630430,1780265452000,-151.0,0.00036314,7]
[423630434,1780265452000,-1406.279124,0.00036314,7]
[423630440,1780265452000,-151.0,0.00036314,7]
[423630428,1780265452000,-151.0,0.00036314,7]
[423630437,1780265452000,-518.696371,0.00036314,7]
[423630436,1780265452000,-649.601898,0.00036314,7]
[423630432,1780265452000,-1406.279124,0.00036314,7]
[423630455,1780265452000,-151.0,0.00036314,7]
[423630438,1780265452000,-649.601898,0.00036314,7]
[423630435,1780265452000,-649.601898,0.00036314,7]
[423630433,1780265452000,-1406.279124,0.00036314,7]
[423630452,1780265452000,-1836.785998,0.00036314,7]
[423630442,1780265452000,-518.696371,0.00036314,7]
[423630453,1780265452000,-1836.785998,0.00036314,7]
[423630441,1780265452000,-649.601898,0.00036314,7]
[423630444,1780265452000,-518.696371,0.00036314,7]
[423630443,1780265452000,-151.0,0.00036314,7]
[423630446,1780265452000,-1334.460671,0.00036314,7]
[423630448,1780265452000,-1836.785998,0.00036314,7]
[423630445,1780265452000,-151.0,0.00036314,7]
[423630451,1780265452000,-1334.460671,0.00036314,7]
[423630449,1780265452000,-1334.460671,0.00036314,7]
[423630447,1780265452000,-1334.460671,0.00036314,7]
[423630439,1780265452000,-518.696371,0.00036314,7]
[423630486,1780265452000,-3009.29,0.00036733,2]
[423630497,1780265452000,-2000.0,0.000369,7]
[423630492,1780265452000,-500.0,0.00036822,2]
[423630524,1780265452000,-5000.0,0.00037122,2]
[423630521,1780265452000,-2000.0,0.000371,7]
[423630532,1780265452000,-175.28622892,0.000372,120]
[423630528,1780265452000,-3726.57,0.00037144,2]
[423630529,1780265452000,-1057.31,0.00037144,7]
[423630523,1780265452000,-5000.0,0.00037122,2]
[423630525,1780265452000,-5000.0,0.00037122,2]
[423630531,1780265452000,-1610.69224664,0.00037174,2]
[423630520,1780265452000,-333.0,0.00037,120]
[423630522,1780265452000,-3009.29,0.00037117,2]
[423630533,1780265452000,-175.28622889,0.000372,120]
[423630535,1780265452000,-175.28622889,0.000372,120]
[423630536,1780265452000,-175.28622889,0.000372,120]
[423630540,1780265452000,-207.9347959,0.00037264,120]
[423630537,1780265452000,-3639.0,0.00037212,2]
[423630490,1780265452000,-375.05,0.0003676,120]
[423630538,1780265452000,-157.99575143,0.00037231,2]
[423630541,1780265452000,-500.0,0.00037264,7]
[423630539,1780265452000,-3009.29,0.00037245,2]
[423630534,1780265452000,-175.28622889,0.000372,120]
[423630542,1780265452000,-500.0,0.00037264,2]
[423630543,1780265452000,-500.0,0.00037264,30]
[423630545,1780265452000,-627.0,0.00037282,13]
[423630546,1780265452000,-1610.69224664,0.00037295,2]
[423630548,1780265452000,-261.60078704,0.000373,30]
[423630551,1780265452000,-291.78153606,0.000373,30]
[423630547,1780265452000,-375.05,0.000373,60]
[423630549,1780265452000,-291.78153607,0.000373,30]
[423630550,1780265452000,-291.78153606,0.000373,30]
[423630530,1780265452000,-2000.0,0.00037164,4]
[423630527,1780265452000,-5000.0,0.00037122,2]
[423630544,1780265452000,-2110.9,0.00037282,7]
[423630513,1780265452000,-266.58690163,0.00036976,2]
[423630526,1780265452000,-5000.0,0.00037122,2]
[423630484,1780265452000,-292.86,0.0003671,30]
[423630491,1780265452000,-192.66910167,0.00036775,60]
[423630488,1780265452000,-627.0,0.00036748,12]
[423630489,1780265452000,-200.0,0.00036758,10]
[423630493,1780265452000,-418.73077645,0.00036822,2]
[423630494,1780265452000,-350.0,0.00036849,5]
[423630495,1780265452000,-3009.29,0.00036861,2]
[423630496,1780265452000,-1590.0,0.00036872,11]
[423630505,1780265452000,-5000.0,0.00036976,2]
[423630499,1780265452000,-157.99575143,0.00036957,2]
[423630498,1780265452000,-150.0,0.00036946,120]
[423630503,1780265452000,-5000.0,0.00036976,2]
[423630500,1780265452000,-5000.0,0.00036976,2]
[423630504,1780265452000,-5000.0,0.00036976,2]
[423630501,1780265452000,-5000.0,0.00036976,2]
[423630514,1780265452000,-3009.29,0.00036989,2]
[423630502,1780265452000,-5000.0,0.00036976,2]
[423630515,1780265452000,-150.0,0.00037,2]
[423630516,1780265452000,-181.82,0.00037,2]
[423630512,1780265452000,-250.0,0.00036976,2]
[423630517,1780265452000,-902.7,0.00037,7]
[423630519,1780265452000,-460.0,0.00037,30]
[423630511,1780265452000,-250.0,0.00036976,2]
[423630510,1780265452000,-250.0,0.00036976,2]
[423630518,1780265452000,-701.23,0.00037,30]
[423630509,1780265452000,-250.0,0.00036976,2]
[423630508,1780265452000,-250.0,0.00036976,2]
[423630506,1780265452000,-5822.54095053,0.00036976,2]
[423630507,1780265452000,-250.0,0.00036976,2]
[423630574,1780265453000,-46663.25098897,0.00037451,2]
[423630572,1780265453000,-400.0,0.00037449,2]
[423630575,1780265453000,-300.0,0.00037451,2]
[423630578,1780265453000,-300.0,0.00037451,2]
[423630576,1780265453000,-300.0,0.00037451,2]
[423630573,1780265453000,-3336.74901103,0.00037451,2]
[423630577,1780265453000,-300.0,0.00037451,2]
[423630584,1780265453000,-1263.151297,0.00037467,7]
[423630581,1780265453000,-311.6,0.00037451,2]
[423630580,1780265453000,-300.0,0.00037451,2]
[423630579,1780265453000,-300.0,0.00037451,2]
[423630591,1780265453000,-170.390236,0.00037467,7]
[423630583,1780265453000,-436.5,0.00037457,120]
[423630571,1780265453000,-150.0,0.00037449,2]
[423630590,1780265453000,-151.0,0.00037467,7]
[423630570,1780265453000,-150.0,0.00037449,2]
[423630558,1780265453000,-5000.0,0.00037373,2]
[423630561,1780265453000,-250.0,0.00037373,2]
[423630556,1780265453000,-5000.0,0.00037373,2]
[423630557,1780265453000,-5000.0,0.00037373,2]
[423630554,1780265453000,-5000.0,0.00037373,2]
[423630552,1780265453000,-3009.29,0.00037373,2]
[423630582,1780265453000,-592.0,0.00037451,3]
[423630555,1780265453000,-5000.0,0.00037373,2]
[423630566,1780265453000,-250.0,0.00037373,2]
[423630562,1780265453000,-250.0,0.00037373,2]
[423630568,1780265453000,-160.16444474,0.00037449,2]
[423630565,1780265453000,-250.0,0.00037373,2]
[423630559,1780265453000,-5000.0,0.00037373,2]
[423630560,1780265453000,-250.0,0.00037373,2]
[423630569,1780265453000,-407.0,0.00037449,2]
[423630563,1780265453000,-250.0,0.00037373,2]
[423630567,1780265453000,-1590.0,0.00037415,11]
[423630564,1780265453000,-250.0,0.00037373,2]
[423630585,1780265453000,-1263.151297,0.00037467,7]
[423630553,1780265453000,-5000.0,0.00037373,2]
[423630587,1780265453000,-1263.151297,0.00037467,7]
[423630610,1780265453000,-3009.2904,0.00037629,2]
[423630617,1780265453000,-165.33,0.00037704,2]
[423630618,1780265453000,-350.0,0.0003772,7]
[423630611,1780265453000,-4648.3,0.00037661,30]
[423630609,1780265453000,-531.3507,0.00037629,2]
[423630613,1780265453000,-163.0,0.0003768,11]
[423630614,1780265453000,-150.0,0.00037694,2]
[423630615,1780265453000,-268.99,0.000377,30]
[423630612,1780265453000,-2319.0,0.0003768,11]
[423630619,1780265453000,-163.0,0.00037744,11]
[423630621,1780265453000,-5000.0,0.00037771,2]
[423630623,1780265453000,-5000.0,0.00037771,2]
[423630624,1780265453000,-2585.95856331,0.00037771,2]
[423630622,1780265453000,-5000.0,0.00037771,2]
[423630586,1780265453000,-1263.151297,0.00037467,7]
[423630608,1780265453000,-1845.3599,0.000376,30]
[423630616,1780265453000,-3347.22,0.000377,14]
[423630620,1780265453000,-5000.0,0.00037771,2]
[423630607,1780265453000,-34745.0,0.000376,30]
[423630605,1780265453000,-355.0,0.00037574,2]
[423630588,1780265453000,-151.0,0.00037467,7]
[423630589,1780265453000,-151.0,0.00037467,7]
[423630594,1780265453000,-334.48622721,0.00037467,120]
[423630595,1780265453000,-200.0,0.000375,15]
[423630604,1780265453000,-10000.0,0.00037571,2]
[423630597,1780265453000,-157.99575143,0.00037505,2]
[423630599,1780265453000,-6732.367104,0.00037562,2]
[423630592,1780265453000,-170.390236,0.00037467,7]
[423630602,1780265453000,-313.45446805,0.0003757,30]
[423630593,1780265453000,-3271.95164303,0.00037467,120]
[423630600,1780265453000,-500.0,0.0003757,7]
[423630598,1780265453000,-152.0,0.00037528,7]
[423630596,1780265453000,-3009.29,0.00037501,2]
[423630601,1780265453000,-419.13,0.0003757,2]
[423630603,1780265453000,-2000.0,0.00037571,2]
[423630606,1780265453000,-1000.0,0.000376,120]
[423630659,1780265454000,-221.0,0.00038,120]
[423630669,1780265454000,-698.54978575,0.00038056,2]
[423630660,1780265454000,-460.0,0.00038,30]
[423630665,1780265454000,-170.93883144,0.00038052,2]
[423630664,1780265454000,-2319.0,0.00038018,11]
[423630662,1780265454000,-1679.24924746,0.00038,120]
[423630658,1780265454000,-850.0,0.00038,2]
[423630657,1780265454000,-2110.9,0.00037967,7]
[423630654,1780265454000,-1200.0,0.00037904,60]
[423630668,1780265454000,-2333.0,0.00038055,11]
[423630648,1780265454000,-350.0,0.00037808,5]
[423630661,1780265454000,-333.0,0.00038,120]
[423630667,1780265454000,-157.99575143,0.00038053,2]
[423630677,1780265454000,-512.3,0.00038125,30]
[423630671,1780265454000,-1590.0,0.00038071,11]
[423630666,1780265454000,-153.84669659,0.00038053,2]
[423630673,1780265454000,-1590.0,0.00038103,11]
[423630684,1780265454000,-5000.0,0.00038169,2]
[423630683,1780265454000,-5000.0,0.00038169,2]
[423630672,1780265454000,-2319.0,0.00038103,11]
[423630678,1780265454000,-7244.9592,0.00038137,60]
[423630679,1780265454000,-170.93883144,0.00038152,2]
[423630680,1780265454000,-5000.0,0.00038169,2]
[423630676,1780265454000,-1590.0,0.00038119,11]
[423630674,1780265454000,-1250.0,0.0003811,2]
[423630649,1780265454000,-627.0,0.00037816,13]
[423630670,1780265454000,-1600.0,0.00038064,11]
[423630651,1780265454000,-1057.31,0.00037829,7]
[423630633,1780265454000,-200.0,0.00036982,2]
[423630656,1780265454000,-500.0,0.00037904,60]
[423630625,1780265454000,-454.30943566,0.000162,2]
[423630627,1780265454000,-34.42113419,0.00035485,2]
[423630628,1780265454000,-260.56817402,0.00012087,2]
[423630629,1780265454000,-239.43182598,0.00012087,2]
[423630626,1780265454000,-300.0,0.00035485,2]
[423630631,1780265454000,-450.70200751,0.00035485,2]
[423630641,1780265454000,-250.0,0.00037771,2]
[423630630,1780265454000,-200.0,0.00035405,2]
[423630632,1780265454000,-200.0,0.00036194,2]
[423630642,1780265454000,-250.0,0.00037771,2]
[423630675,1780265454000,-3522.28655553,0.00038119,31]
[423630634,1780265454000,-170.390236,0.00037467,7]
[423630645,1780265454000,-157.99575143,0.00037779,2]
[423630643,1780265454000,-250.0,0.00037771,2]
[423630636,1780265454000,-199.56968339,0.00037771,2]
[423630637,1780265454000,-1025.49280924,0.00037771,2]
[423630640,1780265454000,-250.0,0.00037771,2]
[423630638,1780265454000,-3774.93750737,0.00037771,2]
[423630639,1780265454000,-250.0,0.00037771,2]
[423630644,1780265454000,-250.0,0.00037771,2]
[423630647,1780265454000,-26856.49,0.000378,2]
[423630655,1780265454000,-500.0,0.00037904,60]
[423630646,1780265454000,-6714.12,0.000378,2]
[423630650,1780265454000,-3726.57,0.00037829,2]
[423630653,1780265454000,-375.05,0.0003784,86]
[423630652,1780265454000,-2000.0,0.00037839,86]
[423630635,1780265454000,-2414.04143669,0.00037771,2]
[423630682,1780265454000,-5000.0,0.00038169,2]
[423630663,1780265454000,-151.0,0.00038,120]
[423630685,1780265454000,-250.0,0.00038169,2]
[423630716,1780265454000,-25000.0,0.0003833,10]
[423630715,1780265454000,-2287.0,0.00038329,120]
[423630724,1780265454000,-500.0,0.00038356,2]
[423630722,1780265454000,-10070.1813307,0.00038353,2]
[423630719,1780265454000,-500.0,0.0003835,7]
[423630720,1780265454000,-627.0,0.0003835,14]
[423630717,1780265454000,-25000.0,0.00038338,10]
[423630718,1780265454000,-25000.0,0.00038347,10]
[423630721,1780265454000,-170.93883144,0.00038352,2]
[423630726,1780265454000,-500.0,0.00038356,2]
[423630727,1780265454000,-500.0,0.00038356,2]
[423630725,1780265454000,-500.0,0.00038356,2]
[423630737,1780265454000,-500.0,0.00038356,2]
[423630728,1780265454000,-500.0,0.00038356,2]
[423630731,1780265454000,-500.0,0.00038356,2]
[423630730,1780265454000,-500.0,0.00038356,2]
[423630735,1780265454000,-500.0,0.00038356,2]
[423630729,1780265454000,-500.0,0.00038356,2]
[423630732,1780265454000,-157.98011528,0.00038356,2]
[423630733,1780265454000,-500.0,0.00038356,2]
[423630734,1780265454000,-500.0,0.00038356,2]
[423630739,1780265454000,-500.0,0.00038356,2]
[423630738,1780265454000,-500.0,0.00038356,2]
[423630741,1780265454000,-500.0,0.00038356,2]
[423630740,1780265454000,-500.0,0.00038356,2]
[423630742,1780265454000,-500.0,0.00038356,2]
[423630681,1780265454000,-5000.0,0.00038169,2]
[423630723,1780265454000,-14726.28199221,0.00038356,10]
[423630712,1780265454000,-2167.5,0.00038329,120]
[423630736,1780265454000,-500.0,0.00038356,2]
[423630713,1780265454000,-2167.5,0.00038329,120]
[423630686,1780265454000,-250.0,0.00038169,2]
[423630714,1780265454000,-2287.0,0.00038329,120]
[423630687,1780265454000,-250.0,0.00038169,2]
[423630688,1780265454000,-250.0,0.00038169,2]
[423630696,1780265454000,-170.93883144,0.00038252,2]
[423630697,1780265454000,-25000.0,0.00038259,10]
[423630692,1780265454000,-25000.0,0.00038224,10]
[423630694,1780265454000,-25000.0,0.00038242,10]
[423630690,1780265454000,-150.0,0.00038193,2]
[423630693,1780265454000,-25000.0,0.00038233,10]
[423630691,1780265454000,-2000.0,0.000382,7]
[423630695,1780265454000,-25000.0,0.0003825,10]
[423630709,1780265454000,-25000.0,0.00038312,10]
[423630689,1780265454000,-250.0,0.00038169,2]
[423630706,1780265454000,-26856.49,0.000383,2]
[423630711,1780265454000,-157.99575143,0.00038327,2]
[423630699,1780265454000,-25000.0,0.00038268,10]
[423630704,1780265454000,-6714.12,0.000383,2]
[423630705,1780265454000,-6714.12,0.000383,2]
[423630708,1780265454000,-25000.0,0.00038303,10]
[423630707,1780265454000,-26856.49,0.000383,2]
[423630700,1780265454000,-243.5,0.00038276,60]
[423630698,1780265454000,-698.54978571,0.00038266,2]
[423630703,1780265454000,-25000.0,0.00038294,10]
[423630701,1780265454000,-25000.0,0.00038277,10]
[423630710,1780265454000,-25000.0,0.00038321,10]
[423630702,1780265454000,-25000.0,0.00038286,10]
[423630775,1780265455000,-2280.95,0.00038356,2]
[423630785,1780265455000,-2281.07781492,0.00038356,2]
[423630787,1780265455000,-1337.61,0.00038356,2]
[423630788,1780265455000,-1337.61,0.00038356,2]
[423630779,1780265455000,-2280.95,0.00038356,2]
[423630780,1780265455000,-2280.95,0.00038356,2]
[423630772,1780265455000,-2280.95,0.00038356,2]
[423630777,1780265455000,-2280.95,0.00038356,2]
[423630776,1780265455000,-2280.95,0.00038356,2]
[423630778,1780265455000,-2280.95,0.00038356,2]
[423630786,1780265455000,-1337.61,0.00038356,2]
[423630774,1780265455000,-2280.95,0.00038356,2]
[423630773,1780265455000,-2280.95,0.00038356,2]
[423630790,1780265455000,-1337.61,0.00038356,2]